bitfinex/quotes_ETHUSD_20251017
["timestamp","ask_amount","ask_price","bid_price","bid_amount"]
[1760667420685,2.591,3917.5,3917.2,2.55284386]
[1760667420883,2.591,3917.5,3917.3,0.4589]
[1760667421058,2.591,3917.5,3917.1,2.70730003]
[1760667421256,2.591,3917.5,3917.2,0.4589]
[1760667421452,2.591,3917.5,3917.3,0.4589]
[1760667421870,2.591,3917.5,3917.4,2.55271353]
[1760667423263,0.40029363,3917.9,3917.7,2.55251783]
[1760667423464,2.99029363,3917.9,3917.5,2.55258475]
[1760667423684,2.99029363,3917.9,3917.2,0.6336]
[1760667423685,0.1272,3917.6,3917.2,0.6336]
[1760667423884,0.1272,3917.6,3917.4,2.55265662]
[1760667424073,0.1272,3917.6,3917.5,2.55264837]
[1760667424690,0.1272,3917.6,3917.5,3.01154837]
[1760667425315,0.40029363,3917.9,3917.8,2.5524529]
[1760667425616,0.1272,3918.1,3918.0,2.55232261]
[1760667426284,0.40124401,3918.7,3918.1,2.55222439]
[1760667426487,2.59,3918.6,3918.5,2.55199693]
[1760667427214,0.1272,3918.6,3918.5,2.55199693]
[1760667427403,0.001,3918.7,3918.6,2.55193181]
[1760667427603,0.001,3918.7,3918.5,0.52653241]
[1760667427803,0.001,3918.7,3918.6,2.55193181]
[1760667428118,0.001,3918.7,3918.6,3.64443181]
[1760667428305,0.001,3918.7,3918.6,5.49963181]
[1760667431389,0.001,3918.7,3918.2,2.71338746]
[1760667431589,0.4695,3918.7,3918.5,1.728]
[1760667432296,0.4695,3918.7,3918.5,2.55197762]
[1760667432612,0.4685,3918.6,3918.1,4.28025348]
[1760667432925,0.4685,3918.6,3918.4,1.728]
[1760667433121,0.4685,3918.5,3917.5,2.71383861]
[1760667433299,3.0585,3918.4,3918.0,2.55226071]
[1760667433504,3.0585,3918.4,3918.1,1.728]
[1760667433826,2.59,3918.4,3918.3,2.55212719]
[1760667434895,2.59,3918.4,3918.3,3.01102719]
[1760667435098,0.001,3918.7,3918.6,4.91353181]
[1760667435597,0.001,3918.7,3918.6,5.37243181]
[1760667435797,0.001,3918.7,3918.6,4.91353181]
[1760667436412,0.001,3918.7,3918.6,5.37243181]
[1760667441531,0.001,3918.7,3918.6,5.49963181]
[1760667441706,0.001,3918.7,3918.6,6.64330123]
[1760667446742,0.001,3919.5,3919.4,3.18501093]
[1760667446913,0.001,3919.5,3919.4,5.77401093]
[1760667447112,0.001,3919.5,3919.4,7.96821093]
[1760667447325,0.001,3919.5,3919.4,9.03630232]
[1760667447834,0.001,3919.5,3919.4,1.70169139]
[1760667448036,0.4432,3919.5,3919.4,3.18501093]
[1760667448443,0.4432,3919.5,3919.4,5.77401093]
[1760667448616,0.4432,3919.5,3919.4,3.18501093]
[1760667448941,0.4432,3919.5,3919.3,2.55144785]
[1760667449131,0.4422,3919.4,3919.3,2.55144785]
[1760667449317,0.4422,3919.4,3919.2,2.55153102]
[1760667449519,0.4422,3919.3,3919.2,2.55153102]
[1760667450617,0.001,3919.5,3919.4,3.18501093]
[1760667450817,0.4432,3919.5,3919.4,3.18501093]
[1760667452221,0.4432,3919.5,3917.7,2.55247094]
[1760667452222,0.4432,3919.5,3919.1,2.55154823]
[1760667452422,0.4422,3919.4,3919.0,0.6336]
[1760667452745,0.001,3919.5,3917.9,0.4662]
[1760667452746,0.4422,3919.3,3918.3,2.38]
[1760667452942,0.001,3919.5,3918.4,0.6336]
[1760667453116,0.4422,3919.2,3918.5,2.55198938]
[1760667453319,0.4422,3919.1,3918.6,2.55193181]
[1760667453515,0.4422,3919.0,3918.4,0.6336]
[1760667453745,0.6577,3918.9,3918.8,2.55179672]
[1760667454927,0.001,3919.5,3919.3,2.55144662]
[1760667455448,0.001,3919.5,3919.4,2.55141093]
[1760667455449,0.84329737,3919.5,3919.4,2.55141093]
[1760667456239,0.40109737,3919.5,3919.4,2.55141093]
[1760667456722,0.97049737,3919.5,3919.4,2.55141093]
[1760667457038,0.97049737,3919.5,3919.0,2.55166603]
[1760667457219,0.1272,3919.2,3919.0,2.55166603]
[1760667457421,0.4422,3919.1,3919.0,2.55166603]
[1760667457646,0.4422,3919.1,3919.0,6.40266602]
[1760667457820,0.1272,3919.2,3919.1,2.55160623]
[1760667458023,0.52829737,3919.5,3919.4,2.55141093]
[1760667458254,0.97049737,3919.5,3919.4,2.55141093]
[1760667458751,0.97049737,3919.5,3919.1,2.55160623]
[1760667458956,0.4422,3919.4,3919.2,2.55148274]
[1760667459257,0.4422,3919.4,3919.3,2.55147602]
[1760667461730,0.4422,3919.4,3919.3,6.40247601]
[1760667462126,0.52829737,3919.5,3919.4,2.55141093]
[1760667463355,0.40109737,3919.5,3919.4,2.55141093]
[1760667463855,0.001,3919.5,3919.4,2.55141093]
[1760667467660,0.001,3919.5,3919.4,7.37388463]
[1760667469244,0.002,3919.6,3919.5,7.03494582]
[1760667472335,0.4472,3919.6,3919.5,3.84999999]
[1760667472663,0.4472,3919.6,3919.4,3.84999999]
[1760667472862,0.4472,3919.6,3918.8,0.002]
[1760667472863,1.728,3919.3,3918.8,0.002]
[1760667473067,0.2316,3918.9,3918.8,0.002]
[1760667473267,2.8196,3918.9,3918.8,0.002]
[1760667473436,3.2648,3918.9,3918.8,0.002]
[1760667473835,3.66496588,3918.9,3918.8,0.002]
[1760667474560,2.98816588,3918.9,3918.8,0.002]
[1760667474764,2.588,3918.9,3918.8,0.25739082]
[1760667475352,2.588,3918.9,3918.8,0.002]
[1760667475938,2.588,3918.9,3918.8,2.55380157]
[1760667476681,2.588,3918.9,3918.8,6.40380156]
[1760667477378,3.2648,3918.9,3918.8,3.85199999]
[1760667479081,2.8196,3918.9,3918.8,6.40380156]
[1760667480388,3.2887,3918.9,3918.8,3.85199999]
[1760667480558,3.61757,3918.9,3918.8,3.85199999]
[1760667481495,3.2887,3918.9,3918.8,3.85199999]
[1760667485099,6.553598,3918.9,3918.8,3.85199999]
[1760667485264,5.802848,3918.9,3918.8,0.002]
[1760667485463,8.026502,3918.9,3918.8,0.002]
[1760667485869,5.671855,3918.9,3918.8,0.002]
[1760667486491,11.53922773,3918.9,3918.8,0.002]
[1760667486696,13.26722773,3918.9,3918.8,0.002]
[1760667487097,13.39663576,3918.9,3918.8,0.002]
[1760667487298,13.44663576,3918.9,3918.8,0.002]
[1760667487470,33.31172576,3918.9,3918.8,0.002]
[1760667487871,33.83489969,3918.9,3918.8,0.002]
[1760667488100,33.31172576,3918.9,3918.8,0.002]
[1760667488399,2.55225747,3918.1,3918.0,0.002]
[1760667488587,2.55225747,3918.1,3916.9,0.002]
[1760667488588,34.28097421,3917.0,3916.9,0.002]
[1760667488790,14.36073321,3917.0,3916.9,0.002]
[1760667488991,13.67651221,3917.0,3916.9,0.002]
[1760667489168,8.535538,3917.0,3916.9,0.002]
[1760667489367,8.47431956,3917.0,3916.9,0.002]
[1760667489577,12.81064156,3917.0,3916.9,0.002]
[1760667490189,13.21107254,3917.0,3916.9,0.002]
[1760667490374,8.87475054,3917.0,3916.9,0.002]
[1760667490574,33.85025554,3917.0,3916.9,0.002]
[1760667491175,32.25815154,3917.0,3916.9,0.002]
[1760667491594,32.47189454,3917.0,3916.9,0.002]
[1760667492073,32.09530554,3917.0,3916.9,0.002]
[1760667492606,38.92475054,3917.0,3916.9,0.002]
[1760667492984,35.88409754,3917.0,3916.9,0.002]
[1760667493178,33.61436554,3917.0,3916.9,0.002]
[1760667493378,26.96449254,3917.0,3916.9,0.002]
[1760667493678,26.93626654,3917.0,3916.9,0.002]
[1760667494486,33.85139854,3917.0,3916.9,0.002]
[1760667495478,8.92475054,3917.0,3916.9,0.002]
[1760667495680,38.92475054,3917.0,3916.9,0.002]
[1760667496798,2.55390427,3915.6,3914.6,2.55451171]
[1760667496997,2.589,3915.5,3914.6,0.433]
[1760667497195,0.1272,3915.0,3914.7,2.55447416]
[1760667497416,2.589,3914.9,3914.8,0.433]
[1760667498022,2.589,3914.9,3914.8,2.9874089]
[1760667501622,2.589,3914.9,3914.8,4.17550304]
[1760667502711,0.1272,3915.2,3915.1,2.55421317]
[1760667502911,2.7172,3915.2,3915.1,2.71541317]
[1760667503114,2.7172,3915.2,3915.1,3.16471317]
[1760667503728,2.7172,3915.2,3915.1,7.64831316]
[1760667503729,2.59,3915.2,3915.1,7.64831316]
[1760667503929,2.59,3915.2,3915.1,8.80030446]
[1760667504415,2.7172,3915.6,3915.5,2.55395224]
[1760667504596,2.7172,3915.6,3915.5,6.85325223]
[1760667506632,2.7172,3915.6,3915.1,0.1612]
[1760667506832,2.59,3915.6,3915.2,2.55414793]
[1760667507033,0.1272,3915.3,3915.2,2.55414793]
[1760667507234,0.1272,3915.3,3915.2,3.00344793]
[1760667507535,0.1272,3915.3,3915.2,3.53040444]
[1760667510105,2.59,3915.6,3915.5,2.55395224]
[1760667510418,2.7172,3915.6,3915.5,2.55395224]
[1760667511308,2.7172,3915.6,3915.5,3.00325224]
[1760667511722,2.7172,3915.6,3915.5,6.85325223]
[1760667512137,2.59,3915.6,3915.5,4.57758544]
[1760667513206,2.59,3915.6,3915.5,8.42758543]
[1760667513818,0.40045324,3916.4,3916.1,2.55353831]
[1760667514013,2.59,3916.3,3916.1,2.55353831]
[1760667514749,2.59,3916.3,3916.2,2.55349573]
[1760667516344,2.59,3916.3,3916.1,0.1564]
[1760667516504,2.59,3916.3,3916.2,4.48359999]
[1760667516704,2.59,3916.3,3916.2,7.75645704]
[1760667516908,2.59,3916.3,3916.2,7.03709572]
[1760667517445,2.59,3916.3,3916.2,3.84999999]
[1760667517609,2.59,3916.3,3916.2,6.40349572]
[1760667518447,0.40045324,3916.4,3916.3,2.55343053]
[1760667518724,2.59,3916.5,3916.1,2.7099241]
[1760667518934,2.59,3916.5,3916.2,2.55348739]
[1760667519142,2.59,3916.5,3916.3,2.55342806]
[1760667519558,2.59,3916.5,3916.2,2.55349573]
[1760667519864,2.59,3916.5,3916.4,2.55336533]
[1760667520158,2.59,3916.5,3916.0,3.84999999]
[1760667520363,0.4321,3916.4,3916.1,3.85199999]
[1760667520864,0.4321,3916.3,3916.1,0.002]
[1760667521264,0.4321,3916.2,3916.1,0.002]
[1760667521462,10.0685517,3916.2,3916.1,0.002]
[1760667521770,7.51505597,3916.2,3916.1,0.002]
[1760667522002,4.38036197,3916.2,3916.1,0.002]
[1760667522263,3.99895297,3916.2,3916.1,0.002]
[1760667522827,3.47095197,3916.2,3916.1,0.002]
[1760667523455,1.23055297,3916.2,3916.1,0.002]
[1760667523754,0.4321,3916.2,3916.1,0.002]
[1760667524551,0.4004722,3916.3,3916.1,0.002]
[1760667524764,0.4321,3916.2,3916.1,0.002]
[1760667524970,2.967165,3916.2,3916.1,0.002]
[1760667525273,4.971846,3916.2,3916.1,0.002]
[1760667525441,0.4321,3916.2,3916.1,0.002]
[1760667525830,3.111389,3916.2,3916.1,0.002]
[1760667526028,2.679289,3916.2,3916.1,2.55556094]
[1760667526262,2.59,3916.2,3916.1,0.002]
[1760667526426,2.59,3916.2,3916.1,2.55556094]
[1760667526762,2.59,3916.2,3916.1,0.002]
[1760667526971,2.59,3916.2,3916.1,2.55556094]
[1760667527467,2.59,3916.2,3916.1,8.26407299]
[1760667529687,2.59,3916.2,3916.1,7.65837299]
[1760667529857,2.59,3916.2,3916.1,7.03916093]
[1760667531081,2.59,3916.2,3916.1,3.18916094]
[1760667531882,0.001,3916.9,3916.3,0.6336]
[1760667532050,0.001,3916.9,3916.8,3.18670457]
[1760667532383,0.697,3916.9,3916.8,3.18670457]
[1760667532980,0.697,3916.9,3916.8,3.63670457]
[1760667535679,0.697,3916.9,3916.8,4.25569462]
[1760667538117,0.697,3916.9,3916.8,3.80569462]
[1760667540024,0.001,3916.9,3916.8,4.25569462]
[1760667540585,0.001,3916.9,3916.8,3.80569462]
[1760667541594,0.001,3916.9,3916.1,0.1584]
[1760667541595,0.6717,3916.9,3916.1,0.1584]
[1760667542013,0.1272,3916.8,3916.7,2.55316976]
[1760667542198,0.001,3916.9,3916.7,2.55316976]
[1760667542199,0.001,3916.9,3916.8,3.18670457]
[1760667543512,0.001,3916.9,3916.8,3.61950457]
[1760667543712,0.001,3916.9,3916.8,3.18670457]
[1760667547521,0.001,3916.9,3916.1,0.1584]
[1760667547522,0.6717,3916.9,3916.1,0.1584]
[1760667547815,0.1272,3916.7,3916.6,2.55323494]
[1760667548036,0.001,3916.9,3916.7,3.18674162]
[1760667548357,0.001,3916.9,3916.8,3.18670457]
[1760667550421,0.001,3916.9,3916.8,7.03670456]
[1760667552575,0.001,3916.9,3916.8,8.05168918]
[1760667552758,0.001,3916.9,3916.8,15.98127374]
[1760667552958,0.001,3917.3,3917.2,3.18644386]
[1760667553178,0.001,3917.3,3917.2,7.06097228]
[1760667553363,0.001,3917.3,3917.2,7.03544385]
[1760667553662,0.001,3917.3,3917.2,8.77991914]
[1760667554442,0.001,3917.3,3917.2,9.21271914]
[1760667556377,0.001,3917.3,3917.2,5.36371915]
[1760667556938,0.001,3917.3,3917.2,4.93091915]
[1760667557172,0.4427,3917.3,3916.4,1.728]
[1760667557340,0.4427,3917.3,3917.2,3.18644386]
[1760667557541,3.0307,3917.3,3915.9,1.728]
[1760667557778,3.0307,3917.3,3917.1,0.6336]
[1760667557939,0.4417,3917.2,3916.1,0.1584]
[1760667558138,0.4417,3917.2,3916.7,2.55315026]
[1760667558367,0.229,3916.8,3916.7,2.55315026]
[1760667558578,0.229,3916.8,3916.1,0.002]
[1760667558579,0.6707,3916.8,3916.1,0.002]
[1760667558785,2.588,3916.7,3916.2,2.55349573]
[1760667558968,0.4417,3916.6,3916.1,0.002]
[1760667559164,0.4417,3916.6,3916.4,2.5533594]
[1760667559364,0.4417,3916.5,3916.4,2.5533594]
[1760667559965,2.588,3916.7,3916.4,3.06621164]
[1760667560165,2.588,3916.7,3916.5,0.6336]
[1760667560488,3.0297,3916.7,3916.6,3.18683494]
[1760667560666,2.588,3916.7,3916.6,3.18683494]
[1760667562313,2.588,3916.7,3916.6,3.64113494]
[1760667562610,2.588,3916.7,3916.6,4.3118696]
[1760667563112,0.001,3917.3,3917.2,3.18644386]
[1760667563277,2.589,3917.3,3917.2,3.18644386]
[1760667571281,2.589,3917.3,3917.2,7.03544385]
[1760667571614,3.0188,3917.3,3917.2,4.48259999]
[1760667571788,3.146,3917.3,3917.2,7.03544385]
[1760667571976,3.146,3917.3,3917.2,4.48259999]
[1760667572182,3.75588913,3917.3,3917.2,3.84899999]
[1760667572383,3.146,3917.3,3917.2,3.84899999]
[1760667572778,3.146,3917.3,3917.2,4.48259999]
[1760667572983,3.146,3917.3,3917.2,7.03544385]
[1760667572984,2.7162,3917.3,3917.2,7.03544385]
[1760667573184,3.146,3917.3,3917.2,4.48259999]
[1760667574642,3.146,3917.3,3917.2,7.03544385]
[1760667575979,2.7162,3917.3,3917.2,7.03544385]
[1760667576338,3.11650127,3917.3,3917.2,7.03544385]
[1760667579372,2.7162,3917.3,3917.2,7.03544385]
[1760667579869,2.589,3917.3,3917.2,8.44858398]
[1760667580178,2.589,3917.3,3917.2,8.57578398]
[1760667580683,0.001,3917.3,3917.2,15.00578398]
[1760667580848,0.001,3917.3,3917.2,14.55148398]
[1760667582594,0.001,3917.3,3917.2,4.27248399]
[1760667583815,0.40125928,3917.3,3917.2,4.27248399]
[1760667584214,0.40125928,3917.3,3917.2,4.72678399]
[1760667585973,0.40125928,3917.3,3917.2,4.27248399]
[1760667591915,0.001,3917.3,3917.2,4.27248399]
[1760667594901,0.001,3917.3,3917.2,4.73568399]
[1760667595213,0.001,3917.3,3917.2,4.27248399]
[1760667596313,0.40126017,3917.3,3917.2,4.27248399]
[1760667598426,0.40126017,3917.3,3917.2,3.31364386]
[1760667598614,0.40126017,3917.3,3917.1,2.55285683]
[1760667598615,0.83186017,3917.3,3917.1,2.55285683]
[1760667598794,3.0176,3917.2,3916.9,0.002]
[1760667598990,3.0176,3917.2,3917.0,3.84899999]
[1760667599328,3.0176,3917.2,3916.9,0.002]
[1760667599329,0.1272,3917.0,3916.9,0.002]
[1760667599714,0.5676,3917.0,3916.9,0.002]
[1760667600433,24.05919877,3917.0,3916.9,0.002]
[1760667600727,15.00823177,3917.0,3916.9,0.002]
[1760667600929,0.5676,3917.0,3916.9,0.002]
[1760667601127,3.1546,3917.0,3916.9,0.002]
[1760667601899,3.55492713,3917.0,3916.9,0.002]
[1760667603329,3.11452713,3917.0,3916.9,0.002]
[1760667603542,3.55492713,3917.0,3916.9,2.55503939]
[1760667603943,2.587,3917.0,3916.9,3.18863939]
[1760667604227,2.587,3917.0,3916.9,7.61181809]
[1760667604608,2.587,3917.0,3916.9,8.05891809]
[1760667604831,0.001,3917.3,3917.2,3.18644386]
[1760667605035,0.001,3917.3,3917.2,4.91444386]
[1760667605234,0.001,3917.3,3917.2,5.79166974]
[1760667606954,0.001,3917.3,3917.2,6.23876974]
[1760667607125,0.001,3917.3,3917.2,6.36596974]
[1760667607454,0.001,3917.3,3917.2,6.23876974]
[1760667607834,0.001,3917.7,3917.6,3.18618321]
[1760667608057,0.001,3917.7,3917.6,10.83383324]
[1760667608224,0.001,3917.7,3917.6,10.80830741]
[1760667609964,0.001,3917.7,3917.6,15.50864558]
[1760667610259,0.001,3917.7,3917.6,10.80830741]
[1760667614797,0.001,3917.7,3917.6,1.38028603]
[1760667615078,0.001,3917.7,3917.6,2.55258321]
[1760667615386,0.001,3917.7,3917.6,3.65880904]
[1760667616046,0.001,3918.5,3918.0,4.91392261]
[1760667616240,0.001,3918.5,3918.0,12.20026078]
[1760667616439,0.001,3918.5,3918.0,13.7202383]
[1760667616666,0.001,3918.5,3918.0,18.86767647]
[1760667617077,0.001,3918.5,3918.0,14.1673383]
[1760667617286,0.001,3918.5,3918.0,14.2945383]
[1760667617743,0.001,3918.5,3918.0,13.8474383]
[1760667617944,0.4404,3918.3,3918.0,13.8474383]
[1760667619055,0.4404,3918.3,3918.0,11.2614383]
[1760667619259,0.4404,3918.3,3918.0,13.8464383]
[1760667620094,0.4404,3918.3,3918.0,4.70590013]
[1760667620296,0.4404,3918.3,3918.0,5.77092261]
[1760667620801,0.001,3918.5,3918.0,3.18592261]
[1760667621088,0.4414,3918.1,3917.8,2.55238849]
[1760667621280,0.2183,3917.9,3917.8,2.5524529]
[1760667621579,0.6661,3917.9,3917.8,3.1860529]
[1760667621784,0.6661,3917.9,3917.8,2.5524529]
[1760667621984,1.0662837,3917.9,3917.8,2.5524529]
[1760667622151,0.4001837,3917.9,3917.8,9.11569468]
[1760667622350,0.4001837,3917.9,3917.8,11.70069468]
[1760667623780,0.4001837,3917.9,3917.8,11.24039468]
[1760667624883,0.001,3918.1,3918.0,3.18592261]
[1760667625063,0.001,3918.1,3918.0,4.56519434]
[1760667630178,0.001,3918.1,3918.0,4.69239434]
[1760667632204,0.001,3918.5,3918.3,3.40019999]
[1760667632510,0.001,3918.5,3918.4,3.18566206]
[1760667632716,0.001,3918.5,3918.4,0.7608]
[1760667632887,0.001,3918.5,3918.3,3.40019999]
[1760667633281,2.55186251,3918.8,3918.3,3.40019999]
[1760667633615,0.1272,3918.4,3918.3,4.03379999]
[1760667634407,0.54645035,3918.4,3918.3,4.03379999]
[1760667638144,4.84663817,3918.4,3918.3,4.03379999]
[1760667638351,7.39870023,3918.4,3918.3,3.40019999]
[1760667638656,8.23921326,3918.4,3918.3,3.40019999]
[1760667639009,2.55219233,3918.2,3917.8,0.002]
[1760667639310,7.39032592,3917.9,3917.8,0.002]
[1760667639740,7.48932592,3917.9,3917.8,0.002]
[1760667639938,8.75198634,3917.9,3917.8,0.002]
[1760667640126,6.19959859,3917.9,3917.8,0.002]
[1760667641154,2.585,3918.1,3917.8,0.002]
[1760667641537,0.0994,3918.0,3917.8,0.002]
[1760667642769,0.2352,3917.9,3917.8,0.002]
[1760667645168,2.585,3918.1,3917.8,4.03579999]
[1760667645467,2.585,3918.1,3917.9,0.6336]
[1760667645842,2.585,3918.1,3918.0,3.18592261]
[1760667647744,2.585,3918.1,3918.0,1.0939]
[1760667647947,2.585,3918.1,3918.0,6.5861226]
[1760667650559,2.585,3918.1,3918.0,6.5881226]
[1760667651635,2.585,3918.1,3918.0,4.03579999]
[1760667653785,2.98517494,3918.1,3918.0,3.40219999]
[1760667653979,2.95522,3918.1,3918.0,3.40219999]
[1760667655550,3.35541162,3918.1,3918.0,3.40219999]
[1760667655752,5.90766909,3918.1,3918.0,3.40219999]
[1760667656970,5.90766909,3918.1,3918.0,0.002]
[1760667657552,5.50747747,3918.1,3918.0,0.002]
[1760667660292,2.585,3918.1,3918.0,0.002]
[1760667660585,2.585,3918.1,3918.0,0.4671]
[1760667660782,2.585,3918.1,3918.0,7.0532226]
[1760667660988,0.001,3918.5,3918.1,0.6336]
[1760667661154,2.585,3918.4,3918.3,2.55212719]
[1760667661355,2.585,3918.4,3918.3,1.0987]
[1760667661593,2.585,3918.4,3918.3,0.6336]
[1760667661756,2.585,3918.4,3918.1,0.6336]
[1760667662091,2.6853,3918.4,3918.1,0.6336]
[1760667662285,0.1003,3918.3,3918.0,3.40219999]
[1760667662589,8.27919742,3918.4,3918.0,3.40219999]
[1760667662590,0.1003,3918.2,3918.0,3.40219999]
[1760667663269,2.6853,3918.1,3918.0,3.40219999]
[1760667663682,2.585,3918.1,3918.0,3.40219999]
[1760667664958,2.98519284,3918.1,3918.0,3.40219999]
[1760667665163,4.21868324,3918.1,3918.0,3.40219999]
[1760667665599,11.47127888,3918.1,3918.0,3.40219999]
[1760667666094,11.47127888,3918.1,3918.0,0.002]
[1760667667404,6.77094071,3918.1,3918.0,0.002]
[1760667667760,4.21868324,3918.1,3918.0,0.002]
[1760667668161,2.584,3918.1,3918.0,0.002]
[1760667668713,0.001,3918.5,3918.1,3.1858364]
[1760667668993,0.001,3918.5,3918.0,3.84449999]
[1760667668994,2.584,3918.4,3918.3,0.6336]
[1760667669193,2.584,3918.4,3918.3,0.4423]
[1760667669386,2.584,3918.4,3918.3,3.62802719]
[1760667669588,2.584,3918.4,3918.3,4.30961349]
[1760667670394,2.7112,3918.4,3918.3,1.7574863]
[1760667670762,2.7112,3918.4,3918.3,4.30961349]
[1760667671592,2.7112,3918.4,3918.3,0.6336]
[1760667673001,2.7112,3918.4,3918.3,3.62802719]
[1760667673302,2.584,3918.4,3918.3,5.35602719]
[1760667673500,0.40114474,3918.5,3918.3,5.35602719]
[1760667673501,0.40114474,3918.5,3918.4,4.91366206]
[1760667673701,0.40114474,3918.5,3918.4,6.41471651]
[1760667675102,0.40114474,3918.5,3918.4,4.68671651]
[1760667677100,0.40114474,3918.5,3918.4,6.41471651]
[1760667677701,0.001,3918.5,3918.4,6.41471651]
[1760667678004,0.001,3918.5,3918.4,14.64004646]
[1760667678603,0.001,3918.5,3918.4,14.74235413]
[1760667681420,0.001,3918.9,3918.4,14.74235413]
[1760667681585,0.001,3919.9,3919.8,8.19248051]
[1760667681788,0.001,3919.9,3919.8,11.41008051]
[1760667682021,0.001,3919.9,3919.8,4.91275056]
[1760667682386,0.001,3919.9,3919.8,3.18475056]
[1760667684433,0.5505,3919.9,3919.8,0.6336]
[1760667685726,0.5505,3919.9,3918.9,4.27973645]
[1760667685927,0.5505,3919.9,3919.1,0.6336]
[1760667686240,0.40098291,3919.9,3919.8,3.18475056]
[1760667686529,0.001,3919.9,3919.8,3.18475056]
[1760667687317,0.4381,3919.9,3919.8,0.6336]
[1760667687751,0.4381,3919.9,3919.8,3.18475056]
[1760667687954,0.4381,3919.9,3919.4,2.55137122]
[1760667688122,0.4371,3919.8,3918.8,0.4602]
[1760667688321,0.4371,3919.8,3919.3,2.55146904]
[1760667688540,3.0201,3919.7,3919.3,2.55146904]
[1760667688741,0.2246,3919.6,3919.4,0.6336]
[1760667688943,0.2147,3919.5,3919.4,2.55139112]
[1760667689365,0.2147,3919.5,3919.4,3.18499112]
[1760667690067,0.2246,3919.6,3919.5,3.18494583]
[1760667690734,0.4393,3919.6,3919.5,3.18494583]
[1760667691361,0.2246,3919.6,3919.5,3.18494583]
[1760667691534,2.583,3919.7,3919.6,3.18488074]
[1760667691853,2.583,3919.7,3919.6,0.6336]
[1760667692056,2.7978,3919.7,3918.9,0.1272]
[1760667692229,0.1272,3919.6,3919.3,2.55145862]
[1760667692563,0.1272,3919.6,3919.5,3.18494583]
[1760667693049,2.583,3919.7,3919.6,3.18488074]
[1760667693227,0.001,3919.9,3919.8,2.55115056]
[1760667694250,0.40094957,3919.9,3919.8,2.55115056]
[1760667695573,0.40094957,3919.9,3919.8,3.18475056]
[1760667695869,0.40094957,3919.9,3919.8,3.77215056]
[1760667696072,0.001,3919.9,3919.8,3.77215056]
[1760667696232,0.001,3919.9,3919.8,4.40449369]
[1760667696571,0.001,3919.9,3919.8,3.94429369]
[1760667697834,0.001,3919.9,3919.8,3.18475056]
[1760667698235,0.001,3919.9,3919.8,3.77215056]
[1760667698940,0.001,3919.9,3919.8,11.14148051]
[1760667700566,0.001,3919.9,3919.8,5.50015056]
[1760667700759,0.001,3919.9,3919.8,4.40635056]
[1760667701276,0.001,3919.9,3919.8,6.47962519]
[1760667701471,0.001,3919.9,3919.8,6.45411369]
[1760667705155,0.001,3919.9,3919.8,5.03995056]
[1760667705571,0.001,3919.9,3919.8,3.31195056]
[1760667707276,0.001,3919.9,3919.8,3.67046206]
[1760667707475,0.001,3919.9,3919.8,3.77215056]
[1760667707682,0.001,3919.9,3919.8,8.08215056]
[1760667707983,0.001,3919.9,3919.8,9.70982669]
[1760667709893,0.001,3919.9,3919.8,9.24962669]
[1760667710098,0.001,3919.9,3919.8,5.03995056]
[1760667710470,0.001,3919.9,3919.8,5.50015056]
[1760667711270,0.001,3919.9,3919.8,5.03995056]
[1760667712885,0.001,3919.9,3919.8,8.44015055]
[1760667717284,0.001,3919.9,3919.8,6.71215055]
[1760667717489,0.001,3919.9,3919.8,8.44015055]
[1760667718206,0.001,3919.9,3919.8,9.79759368]
[1760667718407,0.001,3919.9,3919.8,10.25839368]
[1760667719085,0.001,3919.9,3919.8,9.79759368]
[1760667719288,0.001,3919.9,3919.8,10.25839368]
[1760667722094,0.001,3919.9,3919.8,6.71215055]
[1760667723015,0.001,3919.9,3919.8,7.15545055]
[1760667725931,0.62539571,3919.9,3919.8,6.07855055]
[1760667726232,0.72459571,3919.9,3919.8,6.07855055]
[1760667726419,0.72459571,3919.9,3919.8,6.71215055]
[1760667726822,0.72459571,3919.9,3919.8,2.67835056]
[1760667727021,0.72459571,3919.9,3919.8,2.55115056]
[1760667727203,0.72459571,3919.9,3919.8,3.18475056]
[1760667727522,0.3247,3919.9,3919.8,3.18475056]
[1760667727723,0.001,3919.9,3919.8,3.18475056]
[1760667727925,0.001,3919.9,3919.8,4.09857365]
[1760667728130,0.001,3919.9,3919.8,8.06927364]
[1760667728629,1e-08,3920.0,3919.9,4.91268548]
[1760667728829,1e-08,3920.0,3919.9,5.38149633]
[1760667729019,1e-08,3920.0,3919.9,7.33091351]
[1760667729413,1e-08,3920.0,3919.9,12.02194257]
[1760667730048,1e-08,3920.0,3919.9,19.53217163]
[1760667730330,0.001,3921.6,3920.7,9.60319401]
[1760667730530,0.001,3921.6,3920.7,12.18419401]
[1760667730737,0.40078433,3920.8,3920.7,14.10703665]
[1760667730938,0.001,3920.8,3920.7,14.10703665]
[1760667731356,0.001,3920.8,3920.7,9.41600759]
[1760667738236,0.001,3920.8,3920.7,6.83500759]
[1760667738420,0.001,3920.8,3920.7,9.41500759]
[1760667740022,0.001,3920.8,3920.7,8.97170759]
[1760667740360,0.001,3920.8,3920.7,9.54220759]
[1760667746563,0.001,3920.8,3920.7,9.09890759]
[1760667746759,0.001,3920.8,3920.7,9.52740759]
[1760667747657,0.001,3921.6,3921.1,2.55030476]
[1760667747855,0.001,3922.5,3922.0,3.18331953]
[1760667748091,0.001,3922.5,3922.0,7.49131953]
[1760667748391,0.001,3922.5,3922.0,8.04701953]
[1760667748562,0.001,3922.5,3922.0,8.37131953]
[1760667748960,0.001,3922.5,3922.0,8.49922373]
[1760667749178,0.001,3922.5,3922.0,10.6417445]
[1760667749504,0.001,3922.5,3922.0,10.5138403]